bitfinex-derivatives/quotes_ETHF0:USTF0_20250322
["timestamp","ask_amount","ask_price","bid_price","bid_amount"]
[1742613029415,5.56979943,1982.9,1982.6,1.1962]
[1742613029416,1.0091,1982.7,1982.6,2.20532]
[1742613029919,1.96931375,1982.7,1982.6,2.20532]
[1742613030109,3.08579943,1982.7,1982.6,2.20532]
[1742613030909,4.48629943,1982.7,1982.6,3.53252]
[1742613031509,4.48629943,1982.7,1982.6,1.3272]
[1742613031709,4.48629943,1982.7,1982.6,2.33635]
[1742613033616,3.47719943,1982.7,1982.6,2.33635]
[1742613033815,3.08579943,1982.7,1982.6,2.33635]
[1742613034015,2.07669943,1982.7,1982.6,2.33635]
[1742613034205,3.08579943,1982.7,1982.6,2.33635]
[1742613034625,2.07669943,1982.7,1982.6,2.33635]
[1742613034918,2.07669943,1982.7,1982.6,1.3272]
[1742613035320,1.11648568,1982.7,1982.6,1.3272]
[1742613035616,6.29356943,1982.8,1982.6,1.3272]
[1742613035819,0.96021375,1982.7,1982.6,1.3272]
[1742613036520,2.07669943,1982.7,1982.6,1.3272]
[1742613036721,3.08579943,1982.7,1982.6,1.3272]
[1742613037618,2.12558568,1982.7,1982.6,1.3272]
[1742613037927,1.0091,1982.7,1982.6,1.3272]
[1742613044617,2.411,1982.7,1982.6,1.3272]
[1742613046716,3.37121375,1982.7,1982.6,1.3272]
[1742613046916,4.48769943,1982.7,1982.6,1.3272]
[1742613047118,5.69769943,1982.7,1982.6,1.3272]
[1742613051128,3.08579943,1982.7,1982.6,1.3272]
[1742613051931,3.08579943,1982.7,1982.6,2.33635]
[1742613052130,2.12558568,1982.7,1982.6,1.3272]
[1742613052331,3.08579943,1982.7,1982.6,1.3272]
[1742613052530,1.0091,1982.7,1982.6,1.3272]
[1742613053032,1.0091,1982.7,1982.6,2.5394]
[1742613054327,1.96931375,1982.7,1982.6,2.5394]
[1742613054630,3.08579943,1982.7,1982.6,2.5394]
[1742613061332,3.08579943,1982.7,1982.6,3.54855]
[1742613061540,2.12558568,1982.7,1982.6,3.54855]
[1742613061729,1.0091,1982.7,1982.6,3.54855]
[1742613067543,1.0091,1982.8,1982.7,1.00907]
[1742613067746,1.0091,1982.8,1982.7,4.23207]
[1742613068042,1.0091,1982.8,1982.7,5.56957]
[1742613068436,2.12550568,1982.9,1982.8,1.00905]
[1742613068638,2.12550568,1982.9,1982.8,3.53215]
[1742613068836,2.12548568,1982.9,1982.8,3.53215]
[1742613069643,1.009,1982.9,1982.8,3.53215]
[1742613070954,21.57499466,1983.0,1982.9,1.009]
[1742613071154,21.57499466,1983.0,1982.9,6.7867]
[1742613071356,1.3934,1983.1,1982.9,6.7867]
[1742613071560,3.36343483,1983.1,1983.0,1.316]
[1742613072260,4.4655028,1983.1,1983.0,1.316]
[1742613072650,4.4655028,1983.1,1983.0,2.32495]
[1742613073154,4.4655028,1983.1,1983.0,1.316]
[1742613073554,4.4655028,1983.1,1983.0,2.32495]
[1742613073755,4.4655028,1983.1,1983.0,1.316]
[1742613074267,1.00895,1983.0,1982.9,3.222]
[1742613074557,1.009,1982.9,1982.8,1.00902]
[1742613074760,1.00905,1982.8,1982.7,5.62676]
[1742613075060,2.41055,1982.8,1982.7,4.23106]
[1742613075857,1.4015,1982.8,1982.7,4.23106]
[1742613076255,2.06315069,1982.9,1982.8,1.00905]
[1742613076450,1.10206797,1982.9,1982.8,2.21345]
[1742613076655,1.10206797,1982.9,1982.8,3.36735]
[1742613076960,3.37154546,1983.1,1983.0,1.00895]
[1742613077457,4.47361343,1983.1,1983.0,1.00895]
[1742613078855,3.46469343,1983.1,1983.0,1.00895]
[1742613079362,1.10206797,1983.1,1983.0,1.00895]
[1742613079658,1.10206797,1983.1,1983.0,6.71675]
[1742613079864,21.57499466,1983.3,1983.2,1.00885]
[1742613080070,21.57499466,1983.3,1983.2,4.23085]
[1742613080669,22.67675229,1983.3,1983.2,4.23085]
[1742613080968,7.60284316,1983.5,1983.4,1.00875]
[1742613081168,8.56364099,1983.5,1983.4,1.00875]
[1742613081470,9.66504692,1983.5,1983.4,1.00875]
[1742613081975,10.67374692,1983.5,1983.4,1.00875]
[1742613092377,9.66504692,1983.5,1983.4,1.00875]
[1742613092677,2.06220376,1983.5,1983.4,4.22975]
[1742613092880,2.06978124,1983.6,1983.5,1.0087]
[1742613093069,2.06978124,1983.6,1983.5,3.4853]
[1742613093779,3.45518124,1983.6,1983.5,4.819]
[1742613094584,2.06978124,1983.6,1983.5,4.819]
[1742613094979,3.45518124,1983.6,1983.5,4.819]
[1742613095681,2.49438341,1983.6,1983.5,4.819]
[1742613102284,3.50303341,1983.6,1983.5,3.619]
[1742613102485,3.50303341,1983.6,1983.5,2.3424]
[1742613102486,4.46297248,1983.6,1983.5,2.3424]
[1742613105390,3.45432248,1983.6,1983.5,2.3424]
[1742613105582,2.49438341,1983.6,1983.5,4.8339]
[1742613106091,3.45520373,1983.6,1983.5,4.8339]
[1742613106291,4.46385373,1983.6,1983.5,4.8339]
[1742613106494,3.45520373,1983.6,1983.5,4.8339]
[1742613106687,4.46385373,1983.6,1983.5,4.8339]
[1742613106887,3.45520373,1983.6,1983.5,4.8339]
[1742613108193,4.46385373,1983.6,1983.5,4.8339]
[1742613110493,3.45520373,1983.6,1983.5,4.8339]
[1742613112786,4.46385373,1983.6,1983.5,4.8339]
[1742613113199,3.45520373,1983.6,1983.5,4.8339]
[1742613114798,2.06980373,1983.6,1983.5,4.8339]
[1742613117097,3.43440373,1983.6,1983.5,4.8339]
[1742613134415,2.06980373,1983.6,1983.5,4.8339]
[1742613134928,2.06980373,1983.6,1983.5,8.0417]
[1742613136422,1.10898341,1983.6,1983.5,8.0417]
[1742613136628,0.00757748,1983.6,1983.5,8.0417]
[1742613143831,0.00757748,1983.6,1983.5,6.8236]
[1742613144039,3.66152748,1983.6,1983.5,8.7702]
[1742613144239,4.6223478,1983.6,1983.5,8.7702]
[1742613144430,5.72375373,1983.6,1983.5,8.7702]
[1742613144629,5.72375373,1983.6,1983.5,7.7615]
[1742613144831,5.72375373,1983.6,1983.5,8.7702]
[1742613145725,1.0087,1983.5,1983.4,5.872]
[1742613146028,4.50862032,1983.5,1983.4,5.872]
[1742613146626,5.61002625,1983.5,1983.4,5.872]
[1742613147527,1.0089,1983.1,1983.0,1.00891]
[1742613147834,1.009,1983.0,1982.9,1.00896]
[1742613148037,1.009,1982.9,1982.8,5.50381]
[1742613148533,4.41812625,1982.9,1982.8,1.2748]
[1742613148832,4.41812625,1982.9,1982.7,2.28599]
[1742613148833,1.0091,1982.7,1982.6,10.10112]
[1742613149036,1.0091,1982.7,1982.6,1.2748]
[1742613149428,2.356,1982.7,1982.6,1.2748]
[1742613150942,2.356,1982.7,1982.6,2.28395]
[1742613152345,2.356,1982.7,1982.6,1.2748]
[1742613157747,2.356,1982.7,1982.6,2.28395]
[1742613160140,8.26505,1982.9,1982.8,1.00905]
[1742613160141,4.22906,1982.9,1982.8,1.00905]
[1742613160339,2.37476,1982.9,1982.8,1.00905]
[1742613160736,2.37476,1982.9,1982.8,2.29735]
[1742613163247,2.37476,1982.9,1982.8,1.2883]
[1742613163547,5.58256,1982.9,1982.8,1.2883]
[1742613165848,5.58256,1982.9,1982.8,2.29735]
[1742613166039,5.58256,1982.9,1982.8,1.2883]
[1742613167046,2.37476,1982.9,1982.8,1.2883]
[1742613167244,5.58256,1982.9,1982.8,1.2883]
[1742613169852,6.68061115,1982.9,1982.8,1.2883]
[1742613170046,3.47281115,1982.9,1982.8,1.2883]
[1742613172154,3.47281115,1982.9,1982.8,2.29735]
[1742613173251,4.42348303,1982.9,1982.8,2.29735]
[1742613173456,4.42348303,1982.9,1982.8,1.2883]
[1742613174246,4.42348303,1982.9,1982.8,2.29735]
[1742613175243,4.42348303,1982.9,1982.8,1.2883]
[1742613175854,3.05778303,1982.9,1982.8,2.29735]
[1742613176754,3.05778303,1982.9,1982.8,1.2883]
[1742613176956,7.61488303,1982.9,1982.8,1.2883]
[1742613178454,4.40708303,1982.9,1982.8,1.2883]
[1742613178655,7.61488303,1982.9,1982.8,1.2883]
[1742613180153,7.61488303,1982.9,1982.8,2.29735]
[1742613180954,7.61488303,1982.9,1982.8,1.2883]
[1742613190476,6.26558303,1982.9,1982.8,2.29735]
[1742613191482,3.05778303,1982.9,1982.8,2.29735]
[1742613195383,2.04872303,1982.9,1982.8,2.29735]
[1742613195571,1.09805115,1982.9,1982.8,5.51735]
[1742613195776,0.95067188,1983.1,1983.0,1.00895]
[1742613195983,0.95067188,1983.4,1983.3,1.0088]
[1742613196377,0.95067188,1983.4,1983.3,2.3791]
[1742613197287,3.34602188,1983.4,1983.3,2.3791]
[1742613198888,3.34602188,1983.4,1983.3,3.5758]
[1742613199082,24.78279466,1983.5,1983.4,1.00875]
[1742613199282,26.7027739,1983.5,1983.4,3.51935]
[1742613200183,25.79149466,1983.5,1983.4,3.51935]
[1742613200581,26.70197991,1983.5,1983.4,3.51935]
[1742613201089,25.69327991,1983.5,1983.4,3.51935]
[1742613201285,26.70197991,1983.5,1983.4,3.51935]
[1742613204387,25.69327991,1983.5,1983.4,3.51935]
[1742613204682,26.70197991,1983.5,1983.4,3.51935]
[1742613205284,25.79149466,1983.5,1983.4,3.51935]
[1742613206389,26.70094413,1983.5,1983.4,3.51935]
[1742613206891,26.86625589,1983.5,1983.4,3.51935]
[1742613209497,28.26625589,1983.5,1983.4,3.51935]
[1742613216889,28.26625589,1983.5,1983.4,2.29895]
[1742613218294,1.00885,1983.2,1983.1,5.47545]
[1742613218492,1.00885,1983.2,1983.1,1.00885]
[1742613218698,2.30845,1983.2,1983.1,1.00885]
[1742613218899,1.00895,1983.0,1982.9,2.25656]
[1742613219200,1.00895,1983.0,1982.9,1.00896]
[1742613219599,3.43217697,1983.0,1982.9,2.38596]
[1742613219998,1.00905,1982.8,1982.7,1.00906]
[1742613220600,3.52655,1982.8,1982.7,1.00906]
[1742613221304,4.92145,1982.8,1982.7,2.38856]
[1742613221900,5.99801083,1982.8,1982.7,1.3795]
[1742613222404,6.90898364,1982.8,1982.7,1.3795]
[1742613225307,5.89993364,1982.8,1982.5,1.00918]
[1742613225507,1.00921,1982.6,1982.5,2.33778]
[1742613225902,2.40371,1982.6,1982.5,2.33778]
[1742613226201,3.48027083,1982.6,1982.5,2.33778]
[1742613226900,2.40371,1982.6,1982.5,2.33778]
[1742613230811,2.40371,1982.6,1982.5,1.3286]
[1742613231009,2.40371,1982.6,1982.5,2.33781]
[1742613231621,1.3945,1982.6,1982.5,2.33781]
[1742613232016,2.40365,1982.6,1982.5,2.33781]
[1742613236116,1.00915,1982.6,1982.5,2.33781]
[1742613237016,2.42145,1982.7,1982.6,1.00915]
[1742613237212,2.42145,1982.7,1982.6,2.31425]
[1742613242515,3.49674906,1982.7,1982.6,2.31425]
[1742613242914,3.49674906,1982.7,1982.6,1.3051]
[1742613243119,6.70454906,1982.7,1982.6,1.3051]
[1742613244426,7.61507311,1982.7,1982.6,1.3051]
[1742613250425,4.40727311,1982.7,1982.6,1.3051]
[1742613250827,7.61507311,1982.7,1982.6,1.3051]
[1742613251414,7.61507311,1982.7,1982.6,2.31425]
[1742613252226,7.61507311,1982.7,1982.6,1.3051]
[1742613261927,7.61507311,1982.7,1982.6,2.31425]
[1742613262231,1.98582311,1982.7,1982.6,2.31425]
[1742613262423,1.07529906,1982.7,1982.6,2.31425]
[1742613262627,1.07529906,1982.7,1982.6,3.49595]
[1742613262934,4.38056311,1982.9,1982.8,1.00905]
[1742613263727,4.38056311,1982.9,1982.8,2.30545]
[1742613264127,4.38056311,1982.9,1982.8,1.2964]
[1742613264728,7.58836311,1982.9,1982.8,1.2964]
[1742613264930,1.00915,1982.6,1982.5,4.5086]
[1742613265232,1.00915,1982.6,1982.5,5.51778]
[1742613265432,1.91967405,1982.6,1982.5,2.29878]
[1742613265633,2.99497311,1982.6,1982.5,2.29878]
[1742613266232,4.28787311,1982.6,1982.5,3.67628]
[1742613266429,4.28787311,1982.6,1982.5,1.3775]
[1742613266637,4.28787311,1982.6,1982.5,2.38671]
[1742613266931,4.28787311,1982.6,1982.5,1.3775]
[1742613269641,4.28787311,1982.6,1982.5,2.38671]
[1742613276645,4.28787311,1982.6,1982.5,1.3775]
[1742613277343,4.28787311,1982.6,1982.5,2.38671]
[1742613277740,4.28787311,1982.6,1982.5,1.3775]
[1742613279746,1.00936,1982.2,1982.1,4.22737]
[1742613279949,1.00936,1982.2,1982.1,5.47717]
[1742613280248,2.23996,1982.2,1982.1,5.47717]
[1742613280548,3.31525906,1982.2,1982.1,2.25917]
[1742613280749,2.23996,1982.2,1982.1,2.25917]
[1742613280951,4.42744727,1982.2,1982.1,2.25917]
[1742613281146,6.80064633,1982.2,1982.1,3.59397]
[1742613281946,6.80064633,1982.2,1982.1,3.59401]
[1742613282249,6.80064633,1982.2,1982.1,1.3348]
[1742613288658,5.88775906,1982.2,1982.1,1.3348]
[1742613289354,6.79835152,1982.2,1982.1,1.3348]
[1742613289955,10.00615152,1982.2,1982.1,1.3348]
[1742613292868,6.79835152,1982.2,1982.1,1.3348]
[1742613293167,10.00615152,1982.2,1982.1,1.3348]
[1742613296967,7.86495906,1982.2,1982.1,2.34421]
[1742613297668,7.86495906,1982.2,1982.1,1.3348]
[1742613298073,8.77545396,1982.2,1982.1,1.3348]
[1742613298272,8.77547191,1982.2,1982.1,1.3348]
[1742613301571,8.77547191,1982.2,1982.1,2.34421]
[1742613301776,8.77547191,1982.2,1982.1,1.3348]
[1742613301976,6.20297191,1982.2,1982.1,2.34421]
[1742613302176,5.29245906,1982.2,1982.1,2.34421]
[1742613302571,2.08465906,1982.2,1982.1,2.34421]
[1742613305277,2.99599641,1982.2,1982.1,2.34421]
[1742613309077,1.98663641,1982.2,1982.1,2.34421]
[1742613309383,1.07529906,1982.2,1982.1,2.34421]
[1742613309684,0.00757748,1982.3,1982.2,1.00936]
[1742613309976,0.00757748,1982.3,1982.2,6.88926]
[1742613310678,1.07529906,1982.4,1982.2,6.88926]
[1742613310679,1.07529906,1982.4,1982.3,1.00931]
[1742613310881,3.218,1982.8,1982.6,1.0091]
[1742613311075,4.13031,1982.8,1982.7,2.5586]
[1742613311571,5.20766029,1982.8,1982.7,2.5586]
[1742613311982,6.57466029,1982.8,1982.7,2.5586]
[1742613312182,7.58371029,1982.8,1982.7,3.5677]
[1742613313883,7.58371029,1982.8,1982.7,4.7621]
[1742613315579,7.58371029,1982.8,1982.7,1.3739]
[1742613317083,2.99871029,1982.8,1982.7,2.383]
[1742613317380,2.99871029,1982.8,1982.7,4.8278]
[1742613317571,1.07735029,1982.8,1982.7,4.8278]
[1742613317972,1.07735029,1982.8,1982.7,8.0448]
[1742613318176,0.00757748,1982.9,1982.8,1.00905]
[1742613318378,0.00757748,1982.9,1982.8,2.28185]
[1742613320186,1.01657748,1982.9,1982.8,2.28185]
[1742613321487,1.01657748,1982.9,1982.8,1.2728]
[1742613321683,5.75448603,1982.9,1982.8,1.2728]
[1742613321880,6.82864931,1982.9,1982.8,1.2728]
[1742613322081,2.99974931,1982.9,1982.8,2.28185]
[1742613322281,1.08174076,1982.9,1982.8,2.28185]
[1742613325397,2.09074076,1982.9,1982.8,2.28185]
[1742613325893,1.08174076,1982.9,1982.8,2.28185]
[1742613326296,0.00757748,1982.9,1982.8,2.28185]
[1742613330586,2.29927748,1982.9,1982.8,2.28185]
[1742613331197,3.59207748,1982.9,1982.8,2.28185]
[1742613332299,2.58307748,1982.9,1982.8,2.28185]
[1742613332501,0.00757748,1982.9,1982.8,2.28185]
[1742613333995,0.00757748,1982.9,1982.8,5.48965]
[1742613334195,7.48e-06,1982.9,1982.8,13.86165]
[1742613334898,30.44895385,1983.1,1983.0,1.00895]
[1742613335098,30.44895385,1983.1,1983.0,4.22495]
[1742613335500,30.44895385,1983.1,1983.0,5.45395]
[1742613335800,30.44895385,1983.1,1983.0,9.04833749]
[1742613336001,30.44895385,1983.1,1983.0,8.66175]
[1742613336595,30.44895385,1983.1,1983.0,9.05678361]
[1742613336794,30.44895385,1983.1,1983.0,8.66175]
[1742613337703,30.44895385,1983.1,1983.0,9.93525]
[1742613337898,0.00757748,1983.2,1983.1,1.0089]
[1742613338104,0.00757748,1983.2,1983.1,3.575]
[1742613338600,1.42157748,1983.2,1983.1,3.575]
[1742613339997,2.43042748,1983.2,1983.1,3.575]
[1742613340306,3.67282748,1983.2,1983.1,3.575]
[1742613340494,2.66397748,1983.2,1983.1,3.575]
[1742613340701,0.00757748,1983.2,1983.1,3.575]
[1742613341705,1.34607748,1983.2,1983.1,3.575]
[1742613341903,0.00757748,1983.2,1983.1,3.575]
[1742613343398,0.00757748,1983.2,1983.1,6.7828]
[1742613347302,0.00757748,1983.2,1983.1,3.575]
[1742613350712,0.00757748,1983.2,1983.1,6.7828]
[1742613351412,0.00757748,1983.2,1983.1,9.2828]
[1742613354115,0.00757748,1983.2,1983.1,15.1548]
[1742613357917,0.00757748,1983.2,1983.1,12.6548]
[1742613362216,0.00757748,1983.2,1983.1,15.1548]
[1742613366815,0.00757748,1983.2,1983.1,12.6548]
[1742613367626,1.33607748,1983.2,1983.1,12.6548]
[1742613369627,0.00757748,1983.2,1983.1,12.6548]
[1742613370417,1.07536928,1983.5,1983.1,14.1459]
[1742613370713,26.61731466,1984.0,1983.9,1.00849]
[1742613370714,21.57499466,1984.0,1983.9,1.00849]
[1742613370916,22.48683287,1984.0,1983.9,4.22249]
[1742613371730,23.49527287,1984.0,1983.9,4.22249]
[1742613372032,22.48683287,1984.0,1983.9,3.214]
[1742613372233,22.48683287,1984.0,1983.9,4.22249]
[1742613372529,22.48683287,1984.0,1983.9,5.52059]
[1742613373032,21.57499466,1984.0,1983.9,5.52059]
[1742613373531,22.4644817,1984.0,1983.9,5.52059]
[1742613373831,21.57499466,1984.0,1983.9,5.52059]
[1742613374226,1.01597748,1984.1,1984.0,1.00844]
[1742613374622,0.00757748,1984.1,1984.0,1.00844]
[1742613375529,1.00846,1984.0,1983.9,1.00846]
[1742613376421,1.00849,1983.9,1983.8,0.00757748]
[1742613376627,1.00865,1983.6,1983.5,50.84167]
[1742613376928,4.61201014,1983.9,1983.5,50.84167]
[1742613376929,1.00863,1983.7,1983.6,1.00864]
[1742613377729,1.00865,1983.6,1983.5,4.23023748]
[1742613377936,2.25865,1983.6,1983.5,4.23023748]
[1742613378632,1.25,1983.6,1983.5,4.23023748]
[1742613378837,2.25865,1983.6,1983.5,4.23023748]
[1742613379538,1.25,1983.6,1983.5,4.23023748]
[1742613379738,2.25865,1983.6,1983.5,4.23023748]
[1742613381837,3.52925,1983.6,1983.5,4.23023748]
[1742613382033,4.41826927,1983.6,1983.5,4.23023748]
[1742613384135,5.79946927,1983.6,1983.5,4.23023748]
[1742613384336,6.85090195,1983.6,1983.5,4.23023748]
[1742613385837,5.84225195,1983.6,1983.5,4.23023748]
[1742613386630,1.05143268,1983.6,1983.5,7.43803748]
[1742613386931,3.8765,1983.8,1983.7,1.0086]
[1742613387131,4.92793268,1983.8,1983.7,4.2226]
[1742613387335,5.81704006,1983.8,1983.7,4.2226]
[1742613388531,4.76560738,1983.8,1983.7,4.2226]
[1742613389128,3.8765,1983.8,1983.7,4.2226]
[1742613389745,0.00757748,1984.1,1983.8,2.52131]
[1742613389937,0.00757748,1984.1,1984.0,4.21624]
[1742613390136,0.00757748,1984.1,1984.0,5.50844]
[1742613390337,0.00757748,1984.1,1984.0,6.71884]
[1742613390536,0.00757748,1984.1,1984.0,4.76354]
[1742613392237,1.40527748,1984.1,1984.0,4.76354]
[1742613392737,2.41366748,1984.1,1984.0,1.2922]
[1742613392946,1.00844,1984.0,1983.9,1.00847]
[1742613393141,1.00849,1983.9,1983.8,5.54141]
[1742613393341,2.26969,1983.9,1983.8,5.54141]
[1742613393537,3.66739,1983.9,1983.8,3.214]
[1742613393735,1.00854,1983.8,1983.7,58.04795]
[1742613393941,2.39934,1983.8,1983.7,51.1674]
[1742613394142,1.3908,1983.8,1983.6,3.213]
[1742613394344,3.6543,1983.7,1983.6,4.22165]
[1742613396345,5.47754,1983.9,1983.8,1.00854]
[1742613396538,6.36643693,1983.9,1983.8,1.00854]
[1742613396739,1.00854,1983.8,1983.7,3.63455]
[1742613397045,2.31504,1983.8,1983.7,2.29415]
[1742613397247,3.36638731,1983.8,1983.7,2.29415]
[1742613398439,3.36638731,1983.8,1983.7,1.00855]
[1742613400451,4.25552983,1983.8,1983.7,1.00855]
[1742613400648,3.36638731,1983.8,1983.7,1.00855]
[1742613402547,3.32107731,1983.9,1983.8,1.00854]
[1742613402743,1.05134731,1983.9,1983.8,2.30384]
[1742613403049,2.05982731,1984.0,1983.9,1.00849]
[1742613403249,1.05134731,1984.0,1983.9,1.00849]
[1742613403451,1.94814886,1984.1,1984.0,1.00844]
[1742613403643,1.05892479,1984.1,1984.0,4.22144]
[1742613403839,0.00757748,1984.1,1984.0,4.22144]
[1742613407354,0.00757748,1984.1,1984.0,7.42924]
[1742613411354,0.00757748,1984.1,1984.0,4.22144]
[1742613414058,0.00757748,1984.1,1984.0,5.61514]
[1742613418262,21.57499466,1984.3,1984.2,1.00834]
[1742613418465,21.57499466,1984.3,1984.2,4.22134]
[1742613418861,21.57499466,1984.3,1984.2,5.54644]
[1742613419064,2.5967,1984.4,1984.3,1.00829]
[1742613419261,2.5967,1984.4,1984.3,2.33339]
[1742613422563,1.2474,1984.4,1984.3,2.33339]
[1742613424173,2.6059,1984.4,1984.3,2.33339]
[1742613426468,3.61414,1984.4,1984.3,1.00829]
[1742613426779,8.33862,1984.4,1983.9,5.872]
[1742613426971,2.5355,1984.3,1984.2,1.00834]
[1742613427473,4.59454275,1984.3,1984.1,1.3964]
[1742613427675,1.3261,1984.2,1984.1,2.40475]
[1742613428478,2.33444,1984.2,1984.1,2.40475]
[1742613428680,1.3261,1984.2,1984.1,2.40475]
[1742613428870,1.05071275,1984.3,1984.2,1.00834]
[1742613429071,1.05071275,1984.3,1984.2,6.81614]
[1742613429271,2.5735,1984.4,1984.3,1.00829]
[1742613429471,2.5735,1984.4,1984.3,2.40469]
[1742613432475,0.00757748,1984.5,1984.4,1.00824]
[1742613432677,0.00757748,1984.5,1984.4,4.22024]
[1742613432883,0.00757748,1984.5,1984.4,5.49594]
[1742613433078,0.00757748,1984.5,1984.4,6.82044]
[1742613436881,1.30037748,1984.5,1984.4,6.82044]
[1742613437081,2.53867748,1984.5,1984.4,6.82044]
[1742613438386,0.00757748,1984.5,1984.4,6.82044]
[1742613443083,7.48e-06,1984.5,1984.4,6.82044]
[1742613443287,1.317,1984.9,1984.8,1.00804]
[1742613443583,1.317,1984.9,1984.8,4.22004]
[1742613443987,1.317,1984.9,1984.8,5.60524]
[1742613444781,1.317,1984.9,1984.8,6.87704]
[1742613445683,1.3010582,1985.0,1984.9,1.00799]
[1742613445883,1.3010582,1985.0,1984.9,5.55879]
[1742613446291,8.2e-06,1985.0,1984.9,5.55879]
[1742613450882,8.2e-06,1985.0,1984.9,11.43079]
[1742613452287,1.3053,1985.4,1985.3,1.00778]
[1742613452487,3.8611,1985.4,1985.3,4.22278]
[1742613453193,3.8611,1985.4,1985.3,5.50238]
[1742613459795,0.0075582,1985.5,1985.4,1.00773]
[1742613460093,0.0075582,1985.5,1985.4,2.28373]
[1742613461297,1.4175582,1985.5,1985.4,2.28373]
[1742613463193,1.4175582,1985.5,1985.4,1.00773]
[1742613465396,2.4252382,1985.5,1985.4,1.00773]
[1742613465794,1.4175582,1985.5,1985.4,1.00773]
[1742613466802,1.4175582,1985.5,1985.4,2.35323]
[1742613472510,2.4682115,1985.5,1985.4,2.35323]
[1742613473207,1.4175582,1985.5,1985.4,2.35323]
[1742613473905,2.4682115,1985.5,1985.4,2.35323]
[1742613475210,1.4175582,1985.5,1985.4,2.35323]
[1742613475400,2.30730986,1985.5,1985.4,2.35323]
[1742613475595,3.35796316,1985.5,1985.4,2.35323]
[1742613478799,2.4682115,1985.5,1985.4,2.35323]
[1742613481906,3.35891558,1985.5,1985.4,2.35323]
[1742613482109,2.30826228,1985.5,1985.4,2.35323]
[1742613482511,3.35891558,1985.5,1985.4,2.35323]
[1742613483304,4.36659558,1985.5,1985.4,2.35323]
[1742613485012,3.35891558,1985.5,1985.4,2.35323]
[1742613485615,1.94891558,1985.5,1985.4,2.35323]
[1742613485813,2.3470115,1985.5,1985.4,2.35323]
[1742613486011,1.2963582,1985.5,1985.4,3.55353]
[1742613486313,2.18706228,1985.5,1985.4,3.55353]
[1742613486513,3.23771558,1985.5,1985.4,3.55353]
[1742613486815,2.3470115,1985.5,1985.4,3.55353]
[1742613487211,1.2963582,1985.5,1985.4,3.55353]
[1742613488114,0.0075582,1985.5,1985.4,3.55353]
[1742613503324,0.0075582,1985.5,1985.4,6.76133]
[1742613510037,0.0075582,1985.5,1985.4,5.56103]
[1742613510215,2.4696582,1985.5,1985.4,5.56103]
[1742613510421,0.0075582,1985.5,1985.4,5.56103]
[1742613510626,0.0075582,1985.5,1985.4,8.77103]
[1742613521127,2.5627,1985.7,1985.6,1.00763]
[1742613521330,2.5627,1985.7,1985.6,7.42543]
[1742613521730,2.5627,1985.7,1985.6,8.55533]
[1742613523931,2.5627,1985.7,1985.6,7.42543]
[1742613524737,2.5627,1985.7,1985.6,4.21763]
[1742613525536,2.5627,1985.7,1985.6,5.53163]
[1742613553150,2.5627,1985.7,1985.6,1.00763]
[1742613553351,3.45333935,1985.7,1985.6,1.00763]
[1742613553750,4.5064621,1985.7,1985.6,1.00763]
[1742613553950,5.5140721,1985.7,1985.5,1.3475]
[1742613554150,2.29575607,1985.6,1985.5,2.35514]
[1742613554358,2.29549063,1985.6,1985.5,2.35514]
[1742613555364,2.29549063,1985.6,1985.5,1.3475]
[1742613555564,2.41276,1985.6,1985.3,5.72846]
[1742613555764,2.4338,1985.5,1985.4,2.39933]
[1742613556168,3.44148,1985.5,1985.4,1.3916]
[1742613556366,1.00775,1985.4,1985.2,2.51949]
[1742613556566,4.51097275,1985.4,1985.3,1.00774]
[1742613556763,4.51095275,1985.4,1985.3,2.39934]
[1742613556962,5.4007381,1985.4,1985.3,2.39934]
[1742613557164,8.6085381,1985.4,1985.3,2.39934]
[1742613557472,7.71875275,1985.4,1985.3,1.00774]
[1742613558668,8.60787132,1985.4,1985.3,1.00774]
[1742613559064,11.10787132,1985.4,1985.3,1.00774]
[1742613559371,6.71102275,1985.4,1985.3,1.00774]
[1742613559673,7.71875275,1985.4,1985.3,1.00774]
[1742613561975,6.71102275,1985.4,1985.3,1.00774]
[1742613562172,7.71875275,1985.4,1985.3,1.00774]
[1742613563074,6.71102275,1985.4,1985.3,1.00774]
[1742613563468,7.71875275,1985.4,1985.3,1.00774]
[1742613563668,6.71102275,1985.4,1985.3,1.00774]
[1742613564075,3.50322275,1985.4,1985.3,1.00774]
[1742613564467,2.75e-06,1985.4,1985.3,4.21554]
[1742613564675,2.75e-06,1985.4,1985.3,5.60144]
[1742613564873,7.0748,1985.5,1985.4,1.00773]
[1742613565175,1.1068,1985.5,1985.4,2.39363]
[1742613565374,7.2867,1985.6,1985.5,1.00768]
[1742613565572,7.2867,1985.6,1985.5,2.39358]
[1742613567780,8.29433,1985.6,1985.5,2.39358]
[1742613570875,9.18247539,1985.6,1985.5,2.39358]
[1742613571071,8.29433,1985.6,1985.5,2.39358]
[1742613571271,9.18247417,1985.6,1985.5,2.39358]
[1742613571576,8.29433,1985.6,1985.5,2.39358]
[1742613571775,9.1825201,1985.6,1985.5,2.39358]
[1742613571978,8.29433,1985.6,1985.5,2.39358]
[1742613572275,9.18258959,1985.6,1985.5,2.39358]
[1742613575077,10.20985791,1985.6,1985.5,2.39358]
[1742613580677,9.20222791,1985.6,1985.5,2.39358]
[1742613581084,9.20222791,1985.6,1985.5,3.49248]
[1742613581985,10.20985791,1985.6,1985.5,3.49248]
[1742613582786,10.20985791,1985.6,1985.5,2.39358]
[1742613582986,13.41885791,1985.6,1985.5,1.00768]
[1742613583181,15.91885791,1985.6,1985.5,1.00768]
[1742613583378,1.00768,1985.5,1985.4,2.3146]
[1742613583681,1.00783,1985.3,1985.2,1.00776]
[1742613584191,2.92335791,1985.3,1985.2,1.00776]
[1742613584378,1.91552791,1985.3,1985.2,1.00776]
[1742613584774,1.02726832,1985.3,1985.2,1.00776]
[1742613584979,2.33556832,1985.3,1985.2,2.31466]
[1742613585673,1.02726832,1985.3,1985.2,2.31466]
[1742613586088,3.32866255,1985.5,1985.4,1.00773]
[1742613586382,1.91746255,1985.5,1985.4,1.00773]